bitfinex/quotes_SOLUSD_20240614
["timestamp","ask_amount","ask_price","bid_price","bid_amount"]
[1718376625625,27.8123,144.97,144.92,0.17]
[1718376625855,7.6572,144.96,144.91,0.34]
[1718376626058,2.5524,144.96,144.91,0.17]
[1718376626259,25.26,144.97,144.91,0.34]
[1718376626448,25.26,144.97,144.92,0.17]
[1718376626633,27.8122,144.97,144.92,0.34]
[1718376626954,25.26,144.97,144.93,23.1454]
[1718376627131,53.0768,145.01,144.94,0.17]
[1718376627333,2.5517,145.0,144.94,0.17]
[1718376627562,2.5519,144.99,144.95,0.17]
[1718376627765,7.6557,144.99,144.95,0.17]
[1718376627942,22.9657,145.0,144.95,0.17]
[1718376628139,55.6283,145.01,144.95,0.17]
[1718376628339,20.9379,145.01,144.97,0.17]
[1718376628650,20.9379,145.01,144.97,0.68]
[1718376628861,25.26,145.04,144.98,2.552]
[1718376629037,27.811,145.04,144.99,0.34]
[1718376629236,25.26,145.04,144.99,0.34]
[1718376630250,25.26,145.04,145.0,0.17]
[1718376631470,25.26,145.04,145.0,2.8916]
[1718376631655,25.26,145.04,145.01,0.34]
[1718376631964,25.26,145.04,145.01,0.17]
[1718376632343,25.26,145.04,145.01,0.51]
[1718376633469,25.26,145.04,145.02,0.17]
[1718376634150,0.2,145.09,145.05,0.17]
[1718376634354,0.2,145.09,145.08,0.34]
[1718376634538,0.2,145.09,145.08,0.68]
[1718376634743,0.2,145.09,145.08,21.0824]
[1718376634937,0.2,145.09,145.08,26.183]
[1718376636500,25.26,145.18,145.09,0.17]
[1718376636681,25.26,145.18,145.15,0.17]
[1718376636872,25.26,145.18,145.15,0.68]
[1718376637594,25.26,145.18,145.17,0.17]
[1718376637795,25.26,145.18,145.16,0.17]
[1718376638170,25.26,145.18,145.08,29.2592]
[1718376638370,25.26,145.18,145.15,0.17]
[1718376638571,25.26,145.18,145.12,0.17]
[1718376638780,25.26,145.18,145.08,8.4792]
[1718376638985,2.5491,145.15,145.08,2.5501]
[1718376639296,7.6467,145.16,145.09,2.5501]
[1718376639502,5.0983,145.15,145.07,17.8531]
[1718376639715,5.0997,145.11,145.04,2.5509]
[1718376640015,25.26,145.09,145.06,2.5505]
[1718376640168,25.26,145.09,145.05,2.5507]
[1718376640382,27.8102,145.09,145.02,7.6536]
[1718376640610,2.551,145.04,144.97,20.4172]
[1718376640812,25.26,145.01,144.99,2.5518]
[1718376641010,25.26,145.03,144.99,22.9666]
[1718376641188,25.26,145.03,145.02,2.5513]
[1718376641502,53.0698,145.11,145.04,2.5509]
[1718376641683,50.52,145.11,145.04,10.2039]
[1718376641888,25.26,145.1,145.07,0.17]
[1718376642104,25.26,145.1,145.05,0.34]
[1718376642296,25.26,145.1,144.95,8.9807]
[1718376642498,25.26,145.06,145.0,2.5516]
[1718376642691,25.26,145.06,144.95,8.9807]
[1718376643405,25.26,145.06,144.95,29.7607]
[1718376643595,25.26,145.06,145.04,2.5509]
[1718376643918,25.26,145.06,145.05,2.5508]
[1718376644224,25.26,145.06,145.05,8.3324]
[1718376644511,25.26,145.06,145.05,26.1882]
[1718376644729,8.5775,145.14,145.09,22.9511]
[1718376645011,25.26,145.11,145.09,15.3006]
[1718376645191,25.26,145.11,145.1,0.17]
[1718376645386,25.26,145.11,145.08,8.1607]
[1718376645387,25.26,145.11,145.08,0.51]
[1718376645586,25.26,145.11,145.08,3.0602]
[1718376645792,25.26,145.11,145.09,25.5002]
[1718376645991,25.26,145.11,145.08,0.51]
[1718376647003,25.26,145.11,145.08,0.17]
[1718376647188,25.26,145.11,145.07,0.17]
[1718376647401,25.26,145.11,145.06,15.9836]
[1718376647594,25.26,145.11,145.1,0.17]
[1718376647792,25.26,145.11,145.1,25.8394]
[1718376647989,22.76,145.11,145.1,26.0094]
[1718376648215,22.76,145.11,145.1,26.1794]
[1718376648418,25.26,145.15,145.14,7.8175]
[1718376648630,25.26,145.15,145.14,26.0022]
[1718376649119,25.46,145.19,145.18,2.5485]
[1718376649289,25.46,145.19,145.17,25.4862]
[1718376649489,25.46,145.19,145.18,2.8885]
[1718376649814,0.2,145.19,145.18,22.9369]
[1718376650015,0.09662,145.19,145.18,25.4854]
[1718376650323,0.09662,145.19,145.17,7.6461]
[1718376650616,0.09662,145.19,145.18,22.9369]
[1718376650819,0.09662,145.19,145.18,25.4854]
[1718376651431,0.09662,145.19,145.18,25.6554]
[1718376651607,0.09662,145.19,145.18,25.8254]
[1718376651813,0.09662,145.19,145.18,25.9954]
[1718376652118,2e-05,145.19,145.18,26.1654]
[1718376654217,2e-05,145.19,145.18,46.9454]
[1718376654399,0.817954,145.24,145.23,25.6466]
[1718376654599,0.817954,145.24,145.23,26.1566]
[1718376654995,0.817954,145.24,145.23,0.51]
[1718376655195,26.077954,145.24,145.22,2.7178]
[1718376655397,26.077954,145.24,145.23,2.5476]
[1718376655598,26.077954,145.24,145.23,8.3229]
[1718376655798,26.077954,145.24,145.23,3.2276]
[1718376656025,26.077954,145.24,145.23,15.9659]
[1718376656394,26.077954,145.24,145.23,3.2276]
[1718376656837,0.817954,145.24,145.23,0.51]
[1718376657123,0.817954,145.24,145.22,7.8134]
[1718376657328,0.817954,145.24,145.17,2.5486]
[1718376657512,25.26,145.19,145.18,2.5485]
[1718376657702,25.26,145.19,145.18,15.2912]
[1718376657901,25.26,145.19,145.16,17.8417]
[1718376658119,25.26,145.19,145.17,2.5487]
[1718376658314,25.26,145.19,145.18,2.5485]
[1718376658539,25.26,145.19,145.18,25.4854]
[1718376659124,25.26,145.19,145.18,25.9954]
[1718376659319,0.817954,145.24,145.22,2.5477]
[1718376659634,0.817954,145.24,145.21,22.9315]
[1718376659635,26.077954,145.24,145.21,2.7179]
[1718376659802,26.077954,145.24,145.23,25.6466]
[1718376659996,0.817954,145.24,145.23,26.1566]
[1718376661804,19.577954,145.28,145.26,2.5471]
[1718376662005,19.577954,145.28,145.24,0.17]
[1718376662213,2.5471,145.26,145.19,2.5483]
[1718376662435,25.26,145.24,145.15,20.78]
[1718376662733,25.26,145.24,145.23,20.3813]
[1718376662936,25.26,145.24,145.23,25.4766]
[1718376663230,0.2,145.29,145.22,8.4072]
[1718376663418,25.26,145.28,145.27,2.5469]
[1718376663617,25.26,145.28,145.22,8.4072]
[1718376663826,25.26,145.28,145.24,2.7173]
[1718376664138,25.26,145.28,145.23,23.4387]
[1718376664433,25.26,145.28,145.24,0.17]
[1718376664623,25.26,145.28,145.24,0.34]
[1718376665106,25.26,145.28,145.24,7.9823]
[1718376665514,25.26,145.28,145.26,0.17]
[1718376665820,0.2,145.29,145.27,7.6408]
[1718376666123,0.2,145.29,145.28,2.8868]
[1718376666329,0.2,145.29,145.28,15.6208]
[1718376666639,0.2,145.29,145.28,26.148]
[1718376666942,0.2,145.29,145.17,108.8069]
[1718376666943,0.2,145.29,145.21,10.1917]
[1718376667114,25.26,145.25,145.17,8.8069]
[1718376667313,25.26,145.25,145.22,5.0956]
[1718376667520,25.26,145.25,145.22,7.6433]
[1718376668043,25.26,145.25,145.23,22.9285]
[1718376668340,25.26,145.25,145.24,0.17]
[1718376668517,25.26,145.25,145.24,0.34]
[1718376668722,25.26,145.25,145.24,0.51]
[1718376668927,25.26,145.25,145.22,2.5477]
[1718376669129,25.26,145.25,145.23,2.5476]
[1718376669549,25.26,145.25,145.22,7.6431]
[1718376669853,25.26,145.25,145.17,8.8069]
[1718376670033,25.26,145.25,145.05,313.36534117]
[1718376670034,2.5478,145.22,145.13,8.3263]
[1718376670333,25.26,145.21,145.17,5.0973]
[1718376670534,25.26,145.21,145.18,2.5484]
[1718376671042,25.26,145.21,145.16,2.5488]
[1718376671220,25.26,145.21,145.13,9.08401884]
[1718376671417,25.26,145.21,145.16,15.293]
[1718376671739,7.6448,145.2,145.13,0.75771884]
[1718376671945,21.0467,145.21,145.13,0.75771884]
[1718376672164,25.26,145.15,145.04,8.3474]
[1718376672448,8.615,145.17,145.15,7.647]
[1718376672640,25.26,145.18,145.04,29.1274]
[1718376673015,25.26,145.18,145.15,2.5489]
[1718376673213,25.26,145.18,145.14,22.9423]
[1718376673426,25.26,145.18,145.15,2.549]
[1718376673717,25.26,145.18,145.04,8.3474]
[1718376673919,25.26,145.18,145.1,7.6498]
[1718376674223,25.26,145.18,145.09,2.55]
[1718376674224,7.6462,145.17,145.09,2.55]
[1718376674417,7.6462,145.17,145.09,12.7505]
[1718376674734,25.26,145.18,145.04,8.3474]
[1718376674934,25.26,145.18,145.11,22.9474]
[1718376675142,30.3571,145.18,145.04,8.3474]
[1718376675356,25.26,145.18,145.1,7.6497]
[1718376675640,25.26,145.18,145.13,15.2962]
[1718376675843,25.26,145.18,145.14,2.5492]
[1718376676021,25.26,145.18,145.14,45.0]
[1718376676221,25.26,145.18,145.13,45.0]
[1718376676415,25.26,145.18,145.04,8.3474]
[1718376676615,30.3573,145.18,145.1,7.6496]
[1718376676918,25.26,145.18,145.12,2.5495]
[1718376677117,25.26,145.18,145.11,23.1177]
[1718376677118,25.26,145.18,145.11,15.4683]
[1718376677319,125.26,145.18,145.01,27.37168831]
[1718376677542,22.9403,145.16,145.08,7.6507]
[1718376677751,25.26,145.12,145.08,7.6507]
[1718376678044,25.26,145.12,145.08,15.3015]
[1718376678260,25.26,145.12,145.0,8.3974]
[1718376678415,50.7565,145.12,145.04,2.5509]
[1718376678620,7.6494,145.11,145.04,2.5509]
[1718376678922,25.26,145.08,145.04,2.5509]
[1718376679438,25.26,145.08,145.04,12.755]
[1718376679632,25.26,145.08,145.05,2.5508]
[1718376680018,25.26,145.08,145.04,22.959]
[1718376680219,25.26,145.08,144.97,22.6612]
[1718376680220,25.26,145.08,145.02,5.1026]
[1718376680424,25.26,145.08,145.02,7.6538]
[1718376680655,25.26,145.08,145.04,22.9584]
[1718376680833,25.26,145.08,145.04,25.5093]
[1718376681030,25.26,145.08,145.04,7.6526]
[1718376681226,25.26,145.08,145.05,2.5508]
[1718376682352,25.26,145.08,144.96,9.1378]
[1718376682548,25.26,145.08,145.05,2.5508]
[1718376682731,25.26,145.08,145.05,5.1016]
[1718376683052,25.26,145.08,145.04,25.5093]
[1718376683250,25.26,145.08,145.05,5.1015]
[1718376683451,54.8063,145.12,145.08,7.6506]
[1718376683640,54.8063,145.12,145.06,0.34]
[1718376683841,59.9055,145.12,145.05,2.5508]
[1718376684043,54.8063,145.12,145.05,25.678]
[1718376684245,54.8063,145.12,145.05,0.17]
[1718376684459,46.105,145.12,145.1,5.0998]
[1718376684748,8.5702,145.16,145.11,2.7197]
[1718376684960,8.5702,145.16,145.11,0.17]
[1718376685259,8.5702,145.16,145.11,3.0597]
[1718376685437,8.5702,145.16,145.13,2.5494]
[1718376685638,25.26,145.18,145.15,7.6469]
[1718376685847,25.26,145.18,145.16,2.5489]
[1718376686156,25.26,145.18,145.12,2.5495]
[1718376686356,25.26,145.18,145.13,0.68]
[1718376686532,25.26,145.18,145.13,0.34]
[1718376686730,25.26,145.18,145.14,2.5491]
[1718376686949,25.26,145.18,145.13,7.9879]
[1718376686950,25.26,145.18,145.17,2.7187]
[1718376687256,21.4401,145.22,145.17,0.68]
[1718376687551,8.389,145.24,145.2,2.5481]
[1718376687735,25.26,145.25,145.21,2.5479]
[1718376687930,25.26,145.25,145.22,2.5478]
[1718376688134,25.26,145.25,145.21,22.932]
[1718376688335,25.26,145.25,145.21,25.4798]
[1718376688550,25.26,145.25,145.2,8.1542]
[1718376688754,25.26,145.25,145.22,2.5478]
[1718376689062,47.2721,145.27,145.22,20.3823]
[1718376689234,47.2721,145.27,145.23,2.5476]
[1718376689433,47.2721,145.27,145.22,25.9874]
[1718376689747,2.5471,145.26,145.2,0.34]
[1718376689940,47.2721,145.27,145.2,2.8881]
[1718376690143,47.2721,145.27,145.21,0.17]
[1718376690344,27.8077,145.23,145.15,5.0979]
[1718376690545,25.26,145.23,145.09,26.359]
[1718376690745,25.26,145.23,145.17,22.938]
[1718376690947,25.26,145.23,145.14,12.7457]
[1718376690948,12.739,145.23,145.14,12.7457]
[1718376691161,12.739,145.23,145.13,2.5493]
[1718376691162,25.26,145.2,145.13,2.5493]
[1718376691367,25.26,145.2,145.11,15.2983]
[1718376691368,2.5484,145.19,145.11,15.2983]
[1718376691587,2.5486,145.18,145.11,2.5496]
[1718376691860,9.1278,145.19,145.12,2.5495]
[1718376692035,9.1278,145.19,145.14,22.9424]
[1718376692236,9.1278,145.19,145.14,7.6474]
[1718376692436,9.1278,145.19,145.12,5.099]
[1718376692751,9.1278,145.19,145.12,15.2972]
[1718376692949,9.1278,145.19,145.15,22.941]
[1718376693158,25.26,145.2,145.15,0.17]
[1718376693469,8.2921,145.23,145.18,2.5484]
[1718376693972,8.2921,145.23,145.18,7.6455]
[1718376694176,8.2921,145.23,145.18,2.5484]
[1718376694333,25.26,145.25,145.18,0.17]
[1718376694537,25.26,145.25,145.18,23.1061]
[1718376694757,2.5477,145.23,145.17,0.17]
[1718376694949,25.26,145.21,145.17,0.68]
[1718376695478,25.26,145.21,145.17,8.326]
[1718376695678,25.26,145.21,145.17,3.2286]
[1718376695865,25.26,145.21,145.17,3.2287]
[1718376696065,25.26,145.21,145.14,25.4918]
[1718376696267,25.26,145.21,145.15,7.647]
[1718376696475,25.26,145.21,145.15,2.5489]
[1718376696681,32.9041,145.21,145.14,2.5492]
[1718376696886,38.0001,145.21,145.13,7.6479]
[1718376697072,48.1922,145.21,145.13,7.6479]
[1718376697267,25.26,145.21,145.09,8.5172]
[1718376697673,25.26,145.21,145.15,2.549]
[1718376697999,25.26,145.21,145.17,2.5487]
[1718376698281,25.26,145.21,145.17,0.17]
[1718376698489,25.26,145.21,145.16,0.34]
[1718376698990,25.26,145.21,145.16,2.8887]
[1718376699279,25.26,145.21,145.15,7.987]
[1718376699488,25.26,145.21,145.15,2.889]
[1718376699698,2.5484,145.19,145.13,0.17]
[1718376699883,25.26,145.17,145.12,5.0991]
[1718376700057,25.26,145.17,145.13,25.4938]
[1718376700260,25.26,145.17,145.13,5.0988]
[1718376700483,25.26,145.17,145.14,2.5492]
[1718376700658,25.26,145.17,145.15,2.549]
[1718376700858,25.26,145.17,145.14,25.4918]
[1718376701077,25.26,145.17,145.14,2.5491]
[1718376701284,25.26,145.17,145.14,2.5492]
[1718376701461,25.26,145.17,145.12,2.5495]
[1718376701657,25.26,145.17,145.05,9.1608]
[1718376701886,25.26,145.17,145.13,22.9444]
[1718376702081,25.26,145.17,145.14,2.5492]
[1718376702466,25.26,145.17,145.13,22.9444]
[1718376702665,30.7123,145.2,145.16,10.1956]
[1718376702873,32.921,145.24,145.17,7.6459]
[1718376703072,30.3735,145.24,145.17,25.657]
[1718376703278,30.3735,145.24,145.18,2.5485]
[1718376703501,30.3735,145.24,145.18,7.6455]
[1718376703687,30.3735,145.24,145.18,25.4851]
[1718376704095,30.3735,145.24,145.17,2.7185]
[1718376704304,30.3735,145.24,145.18,15.801]
[1718376704600,30.3735,145.24,145.18,3.0585]
[1718376704902,32.921,145.24,145.18,0.34]
[1718376705091,38.016,145.24,145.17,2.7186]
[1718376705397,2.5476,145.23,145.17,0.34]
[1718376705798,30.3735,145.24,145.17,2.8887]
[1718376706007,30.3735,145.24,145.18,2.5485]
[1718376706803,30.3735,145.24,145.18,7.6455]
[1718376706993,30.3735,145.24,145.18,2.5485]
[1718376707192,30.3735,145.24,145.19,2.5483]
[1718376707496,30.3735,145.24,145.19,0.17]
[1718376707681,21.3946,145.24,145.19,0.68]
[1718376707881,25.26,145.25,145.2,15.2889]
[1718376708084,25.26,145.25,145.21,22.932]
[1718376708387,25.26,145.25,145.21,0.17]
[1718376708713,25.26,145.25,145.21,8.3238]
[1718376709698,25.26,145.25,145.21,0.51]
[1718376709889,25.26,145.25,145.2,0.17]
[1718376710194,25.26,145.25,145.21,2.5479]
[1718376710993,25.26,145.25,145.19,2.5482]
[1718376711193,25.26,145.25,145.19,7.6449]
[1718376711400,25.26,145.25,145.19,25.4825]
[1718376711606,25.26,145.25,145.2,2.5481]
[1718376711788,25.26,145.25,145.19,12.7415]
[1718376711987,25.26,145.25,145.18,22.9366]
[1718376712288,25.26,145.25,145.19,2.5483]
[1718376712817,25.26,145.25,145.22,7.6433]
[1718376713106,25.26,145.25,145.18,0.17]
[1718376713107,25.26,145.25,145.2,2.5481]
[1718376713314,25.26,145.25,145.19,15.46]
[1718376713681,25.26,145.25,145.19,2.7183]
[1718376713998,25.26,145.25,145.2,12.7403]
[1718376714199,25.26,145.25,145.21,22.9319]
[1718376714496,25.26,145.25,145.21,25.4797]
[1718376714887,25.26,145.25,145.21,15.2878]
[1718376715204,25.26,145.25,145.22,7.6434]
[1718376715397,25.26,145.25,145.22,2.5478]
[1718376716002,25.26,145.25,145.19,5.4366]
[1718376716206,25.26,145.25,145.2,7.6444]
[1718376716707,25.26,145.25,145.2,7.6443]
[1718376717102,25.26,145.25,145.2,22.9336]
[1718376717407,25.26,145.25,145.22,2.5477]
[1718376717881,25.26,145.25,145.21,8.1536]
[1718376718082,25.26,145.25,145.21,8.1539]
[1718376718278,25.26,145.25,145.22,2.5478]
[1718376718713,25.26,145.25,145.21,25.9889]
[1718376718900,25.26,145.25,145.19,12.7417]
[1718376719086,25.26,145.25,145.2,7.6445]
[1718376719408,25.26,145.25,145.11,30.8139]
[1718376719591,27.8074,145.25,145.18,2.5484]
[1718376719797,27.8074,145.25,145.18,7.6454]
[1718376720006,27.8074,145.25,145.18,2.5484]
[1718376720218,37.9968,145.25,145.17,7.6458]
[1718376720520,2.5478,145.23,145.16,2.5488]
[1718376720691,50.7339,145.25,145.18,2.5485]
[1718376721020,25.26,145.25,145.18,22.9367]
[1718376721309,25.26,145.25,145.11,8.8251]
[1718376721310,2.5475,145.24,145.11,8.8251]
[1718376721486,15.2852,145.24,145.17,0.17]
[1718376721688,2.5476,145.23,145.17,0.17]
[1718376721898,122.9283,145.24,145.16,7.6466]
[1718376722095,125.4759,145.24,145.16,15.2933]
[1718376722318,25.4785,145.22,145.14,25.4912]
[1718376722619,25.4777,145.23,145.16,2.5489]
[1718376722782,7.6436,145.22,145.14,22.9423]
[1718376722986,7.6436,145.22,145.15,2.549]
[1718376723291,5.0958,145.22,145.14,5.0984]
[1718376723486,7.6435,145.22,145.15,2.549]
[1718376723690,10.1913,145.22,145.14,22.9423]
[1718376723912,21.2671,145.2,145.13,5.0988]
[1718376724226,21.2671,145.2,145.13,22.9445]
[1718376724511,29.5615,145.2,145.13,7.6479]
[1718376724690,32.1097,145.2,145.13,7.6479]
[1718376724885,29.5615,145.2,145.14,2.5492]
[1718376725390,2.5486,145.18,145.11,2.5496]
[1718376725589,129.5615,145.2,145.07,9.055]
[1718376725913,25.26,145.17,145.1,2.5498]
[1718376726091,25.26,145.17,145.11,7.6491]
[1718376726293,25.26,145.17,145.11,2.5496]
[1718376726508,25.26,145.17,145.1,25.4983]
[1718376726808,27.8088,145.17,145.1,2.5498]
[1718376726990,32.9062,145.17,145.1,2.5498]
[1718376727505,7.6468,145.16,145.09,2.5501]
[1718376727692,7.6468,145.16,145.08,12.7512]
[1718376727693,25.4895,145.16,145.08,15.3014]
[1718376727887,7.6473,145.15,145.07,22.9532]
[1718376728089,25.4911,145.15,145.08,2.5503]
[1718376728294,7.6474,145.15,145.07,25.5042]
[1718376728509,100.0,145.16,145.05,2.5508]
[1718376728703,100.0,145.16,145.05,7.6524]
[1718376728704,2.5496,145.12,145.05,7.6524]
[1718376728906,2.5496,145.12,145.04,17.8562]
[1718376728907,7.6489,145.12,145.04,15.3056]
[1718376729141,2.5497,145.12,145.05,7.6524]
[1718376729324,27.8095,145.13,145.06,7.6519]
[1718376729511,50.7546,145.13,145.05,15.3048]
[1718376729707,40.5569,145.13,145.06,2.5506]
[1718376729907,2.5496,145.12,145.05,7.6523]
[1718376730116,48.2051,145.13,145.05,7.6523]
[1718376730416,2.5496,145.12,145.05,2.5507]
[1718376730620,2.5496,145.12,145.05,7.6523]
[1718376730819,50.7546,145.13,145.05,7.6523]
[1718376730995,50.7546,145.13,145.0,8.9852]
[1718376730996,25.26,145.13,145.0,8.9852]
[1718376731320,33.4215,145.11,145.03,17.8576]
[1718376731623,30.8716,145.11,145.06,7.6516]
[1718376731822,30.8716,145.11,145.04,25.509]
[1718376732027,46.1704,145.11,145.03,25.5107]
[1718376732231,30.8716,145.11,145.05,7.6523]
[1718376732415,33.4214,145.11,145.04,7.6527]
[1718376733025,100.0,145.09,145.0,17.8614]
[1718376733202,27.8101,145.09,145.02,2.5513]
[1718376733529,2.5503,145.08,145.01,7.6542]
[1718376733714,25.26,145.09,145.01,5.1028]
[1718376734022,25.26,145.09,144.96,8.5959]
[1718376734230,25.26,145.09,145.03,2.5511]
[1718376734607,25.26,145.09,145.02,22.9611]
[1718376734813,27.8101,145.09,145.02,2.5513]
[1718376735427,25.26,145.09,145.03,2.5511]
[1718376735753,100.0,145.15,145.09,0.17]
[1718376735754,8.7426,145.15,145.09,0.17]
[1718376736032,8.7426,145.15,145.1,5.0997]
[1718376736241,25.26,145.18,145.09,0.17]
[1718376736400,30.3855,145.2,145.16,2.5488]
[1718376736795,30.3855,145.2,145.15,13.0849]
[1718376737026,30.3855,145.2,145.16,2.5489]
[1718376737213,30.3855,145.2,145.17,2.5486]
[1718376737516,22.0528,145.2,145.17,7.6458]
[1718376737722,22.0528,145.2,145.18,2.5485]
[1718376737929,8.4631,145.24,145.2,7.6444]
[1718376737930,29.7389,145.24,145.2,7.6444]
[1718376738200,21.2758,145.24,145.21,7.6438]
[1718376738506,21.2758,145.24,145.21,2.5479]
[1718376738711,21.2758,145.24,145.2,25.4809]
[1718376738933,21.2758,145.24,145.11,21.82]
[1718376739139,7.6431,145.23,145.15,5.0979]
[1718376739448,100.0,145.22,145.09,8.4059]
[1718376739611,8.9194,145.19,145.14,5.0985]
[1718376739801,8.9194,145.19,145.06,21.3451]
[1718376740004,2.5491,145.15,145.08,2.5502]
[1718376740236,37.8223,145.17,145.01,31.2505]
[1718376740452,22.5296,145.17,145.11,2.5497]
[1718376740643,30.1757,145.17,145.1,2.5498]
[1718376740840,7.6467,145.16,145.08,5.1003]
[1718376741056,22.5296,145.17,145.01,31.2505]
[1718376741252,22.5296,145.17,145.14,2.5491]
[1718376741556,22.5296,145.17,145.13,7.6482]
[1718376741759,22.5296,145.17,145.12,7.6485]
[1718376741943,22.5296,145.17,145.11,7.649]
[1718376742148,22.5296,145.17,145.01,31.2505]
[1718376742338,22.5296,145.17,145.1,12.7496]
[1718376742537,22.5296,145.17,145.1,15.2994]
[1718376743036,7.6469,145.16,145.09,2.5501]
[1718376743356,7.6469,145.16,145.08,2.5502]
[1718376743357,2.549,145.15,145.08,2.5502]
[1718376743564,135.2735,145.17,145.09,7.6502]
[1718376743748,22.5296,145.17,145.01,31.2505]
[1718376743953,22.5296,145.17,145.12,7.6485]
[1718376744258,22.5296,145.17,145.12,2.5494]
[1718376744460,22.5296,145.17,145.12,15.2971]
[1718376744662,8.9194,145.19,145.15,2.5489]
[1718376744957,8.9194,145.19,145.14,0.34]
[1718376745161,21.8913,145.21,145.17,2.5486]
[1718376745372,21.8913,145.21,145.15,5.6081]
[1718376745660,21.8913,145.21,145.16,2.5488]
[1718376745863,21.8913,145.21,145.17,2.5487]
[1718376746061,21.8913,145.21,145.16,25.4887]
[1718376746236,21.8913,145.21,145.17,0.17]
[1718376746443,21.8913,145.21,145.15,3.0589]
[1718376746647,21.8913,145.21,145.15,8.1569]
[1718376747054,21.8913,145.21,145.17,15.292]
[1718376747250,21.8913,145.21,145.17,2.5486]
[1718376747657,21.8913,145.21,145.17,7.646]
[1718376748061,21.8913,145.21,145.17,7.6459]
[1718376748569,21.8913,145.21,145.16,0.17]
[1718376748934,21.8913,145.21,145.16,2.7189]
[1718376749143,21.8913,145.21,145.18,2.5485]
[1718376749454,8.5093,145.23,145.19,2.5482]
[1718376749639,8.5093,145.23,145.19,2.5483]
[1718376749848,8.5093,145.23,145.18,25.8252]
[1718376750075,8.5093,145.23,145.19,0.17]
[1718376750376,8.5093,145.23,145.1,21.0854]
[1718376750967,8.5093,145.23,145.2,15.2891]
[1718376751262,22.1579,145.25,145.2,22.9338]
[1718376751569,22.1579,145.25,145.23,2.5475]
[1718376751952,22.1579,145.25,145.24,2.5475]
[1718376752162,8.6008,145.27,145.23,2.5475]
[1718376752364,8.6008,145.27,145.23,0.17]
[1718376752670,8.6008,145.27,145.22,2.8878]
[1718376752973,8.6008,145.27,145.22,15.6269]
[1718376753273,8.6008,145.27,145.23,22.9289]
[1718376753575,0.2,145.29,145.24,7.6424]
[1718376753948,0.2,145.29,145.24,0.17]
[1718376754149,0.2,145.29,145.26,2.547]
[1718376754544,0.2,145.29,145.25,0.51]
[1718376754749,0.2,145.29,145.26,3.057]
[1718376755270,0.2,145.29,145.26,3.0571]
[1718376755570,0.2,145.29,145.24,2.5474]
[1718376755773,2.7467,145.29,145.22,7.6434]
[1718376755939,2.5468,145.28,145.21,2.5479]
[1718376756144,7.6404,145.28,145.21,2.5479]
[1718376756386,0.2,145.29,145.15,22.0046]
[1718376756675,0.2,145.29,145.26,7.6412]